bitfinex/quotes_BTCUSD_20241226
["timestamp","ask_amount","ask_price","bid_price","bid_amount"]
[1735203393837,0.00263983,96097.0,96093.0,0.166503]
[1735203394252,0.00263983,96094.0,96093.0,0.166503]
[1735203394450,0.00263983,96094.0,96093.0,0.333007]
[1735203394686,0.0001718,96100.0,96098.0,0.166495]
[1735203395332,0.0001718,96100.0,96091.0,0.166507]
[1735203395333,0.00263983,96093.0,96091.0,0.166507]
[1735203395496,0.0001718,96100.0,96093.0,0.002]
[1735203395497,0.00263983,96094.0,96093.0,0.002]
[1735203395936,0.00263983,96094.0,96091.0,0.166507]
[1735203396167,0.00263983,96093.0,96091.0,0.166507]
[1735203397098,0.00263983,96093.0,96084.0,0.12436091]
[1735203397099,0.0001718,96100.0,96097.0,0.166496]
[1735203397304,0.0001718,96100.0,96099.0,0.198]
[1735203397517,0.00263983,96130.0,96125.0,0.166448]
[1735203397693,0.00263983,96132.0,96129.0,0.166442]
[1735203397959,0.166413,96147.0,96129.0,0.13244198]
[1735203397960,0.00263983,96130.0,96129.0,0.13244198]
[1735203398174,0.166413,96147.0,96129.0,0.29888398]
[1735203398378,0.00263983,96131.0,96130.0,0.0797]
[1735203398784,0.00315713,96131.0,96130.0,0.0797]
[1735203399366,0.00263983,96123.0,96121.0,0.166456]
[1735203399569,0.00263983,96123.0,96120.0,0.0797]
[1735203399975,0.00263983,96123.0,96121.0,0.166456]
[1735203400995,0.0005173,96131.0,96129.0,0.166441]
[1735203402876,0.10398632,96146.0,96132.0,0.0274827]
[1735203403070,0.19345423,96145.0,96132.0,0.0274827]
[1735203403269,0.10398632,96144.0,96132.0,0.0274827]
[1735203404115,0.10398632,96144.0,96132.0,0.0284827]
[1735203404525,0.10398632,96144.0,96133.0,0.166436]
[1735203405757,0.27340432,96144.0,96132.0,0.0274827]
[1735203405958,0.33404136,96144.0,96132.0,0.0274827]
[1735203406187,0.00263983,96133.0,96132.0,0.0224827]
[1735203406388,0.10662615,96133.0,96132.0,0.0214827]
[1735203407416,0.10862615,96133.0,96132.0,0.0214827]
[1735203407562,0.1185876,96133.0,96132.0,0.0214827]
[1735203407765,0.19037476,96133.0,96132.0,0.0214827]
[1735203408033,0.19037476,96133.0,96132.0,0.0114827]
[1735203408208,0.35681076,96133.0,96132.0,0.0114827]
[1735203408995,0.2850236,96133.0,96132.0,0.0114827]
[1735203409218,0.2870236,96133.0,96132.0,0.0114827]
[1735203409399,0.2870236,96133.0,96132.0,0.0124827]
[1735203409400,0.2930236,96133.0,96132.0,0.0124827]
[1735203409575,0.2930236,96133.0,96132.0,0.0114827]
[1735203409791,0.2830236,96133.0,96132.0,0.0114827]
[1735203409987,0.36261146,96133.0,96132.0,0.0124827]
[1735203410238,0.36261146,96133.0,96132.0,0.0114827]
[1735203410614,0.2910236,96133.0,96132.0,0.0114827]
[1735203410814,0.2911954,96133.0,96132.0,0.0114827]
[1735203411210,0.2951954,96133.0,96132.0,0.0114827]
[1735203411417,0.2921954,96133.0,96132.0,0.0114827]
[1735203411817,0.28259412,96133.0,96132.0,0.0114827]
[1735203412240,0.27759412,96133.0,96132.0,0.0114827]
[1735203412580,0.27059412,96133.0,96132.0,0.0114827]
[1735203412761,0.0061718,96133.0,96132.0,0.0114827]
[1735203412920,0.0061718,96133.0,96118.0,0.00995944]
[1735203413126,0.0101718,96133.0,96128.0,0.166444]
[1735203413343,0.00263983,96129.0,96128.0,0.166444]
[1735203414129,0.00263983,96129.0,96100.0,0.23491749]
[1735203414130,0.00263983,96111.0,96109.0,0.0813]
[1735203414345,0.00263983,96111.0,96110.0,0.166475]
[1735203415408,0.00263983,96111.0,96110.0,0.1669923]
[1735203415957,0.00263983,96111.0,96110.0,0.1699923]
[1735203416153,0.00363983,96111.0,96110.0,0.1769923]
[1735203416699,0.00363983,96111.0,96110.0,0.1739923]
[1735203417141,0.00263983,96111.0,96110.0,0.1669923]
[1735203417345,0.00363983,96111.0,96110.0,0.1729923]
[1735203417659,0.00363983,96111.0,96110.0,0.17403271]
[1735203417866,0.00363983,96111.0,96110.0,0.01055771]
[1735203418281,0.001,96111.0,96110.0,0.17703271]
[1735203418490,0.00263983,96116.0,96115.0,0.166467]
[1735203419438,0.00263983,96116.0,96115.0,0.332934]
[1735203419838,0.00363983,96116.0,96115.0,0.339934]
[1735203420516,0.001,96116.0,96115.0,0.339934]
[1735203420776,0.00363983,96116.0,96115.0,0.339934]
[1735203420986,0.001,96116.0,96115.0,0.339934]
[1735203421379,0.00363983,96116.0,96115.0,0.339934]
[1735203421933,0.00363983,96116.0,96115.0,0.007]
[1735203422681,0.00363983,96116.0,96115.0,0.0050858]
[1735203422882,0.00363983,96116.0,96110.0,0.16223789]
[1735203423079,0.00263983,96116.0,96110.0,0.32871289]
[1735203423283,0.00363983,96116.0,96115.0,0.005]
[1735203423516,0.00363983,96116.0,96115.0,0.007]
[1735203424071,0.00263983,96116.0,96115.0,0.168467]
[1735203424914,0.00263983,96116.0,96115.0,0.166467]
[1735203425064,0.00463983,96116.0,96115.0,0.166467]
[1735203425465,0.00663983,96116.0,96115.0,0.166467]
[1735203425666,0.00263983,96116.0,96115.0,0.166467]
[1735203425873,0.00263983,96116.0,96115.0,0.168467]
[1735203426108,0.00263983,96116.0,96115.0,0.337934]
[1735203427611,0.00263983,96122.0,96121.0,0.166455]
[1735203427856,0.00263983,96122.0,96117.0,0.00104035]
[1735203428062,0.16643,96137.0,96115.0,0.005]
[1735203428063,0.00263983,96118.0,96115.0,0.005]
[1735203428597,0.00263983,96116.0,96115.0,0.003]
[1735203428798,0.00263983,96116.0,96109.0,0.08234035]
[1735203429706,0.00363983,96116.0,96109.0,0.08234035]
[1735203430484,0.00263983,96116.0,96109.0,0.08234035]
[1735203430706,0.00263983,96116.0,96109.0,0.0813]
[1735203430904,0.00263983,96116.0,96091.0,0.1665929]
[1735203430905,0.00263983,96092.0,96091.0,8.59e-05]
[1735203431134,0.00263983,96092.0,96091.0,0.00024173]
[1735203431892,0.10662615,96092.0,96091.0,0.00024173]
[1735203432898,0.10762615,96092.0,96091.0,0.00324173]
[1735203433145,0.15168895,96092.0,96091.0,0.00324173]
[1735203433351,0.15168895,96092.0,96091.0,0.00424173]
[1735203434224,0.15168895,96092.0,96091.0,0.001]
[1735203434468,0.15168895,96092.0,96091.0,0.002]
[1735203434847,0.15168895,96092.0,96091.0,0.001]
[1735203435025,0.16652,96084.0,96083.0,0.01416097]
[1735203435221,0.27314615,96084.0,96083.0,0.01416097]
[1735203435420,0.33376327,96084.0,96083.0,0.01416097]
[1735203435901,0.27314615,96084.0,96083.0,0.01416097]
[1735203436386,0.37314615,96084.0,96083.0,0.01416097]
[1735203436543,0.37814615,96084.0,96083.0,0.01416097]
[1735203437148,0.47814615,96084.0,96083.0,0.01416097]
[1735203437593,0.62814615,96084.0,96083.0,0.01416097]
[1735203437793,0.73413247,96084.0,96083.0,0.01416097]
[1735203438024,0.00263983,96047.0,96046.0,0.07513617]
[1735203438368,0.00263983,96047.0,96046.0,0.07529206]
[1735203439171,0.00263983,96047.0,96046.0,0.00015589]
[1735203439172,0.27321115,96047.0,96046.0,0.00015589]
[1735203440460,0.27321115,96047.0,96046.0,0.00115589]
[1735203440878,0.27321115,96047.0,96046.0,0.00015589]
[1735203441096,0.29059626,96047.0,96046.0,0.00015589]
[1735203441328,0.28759626,96047.0,96046.0,0.00015589]
[1735203441573,0.29359626,96047.0,96046.0,0.00015589]
[1735203442777,0.00263983,96033.0,96032.0,0.03484159]
[1735203443011,0.10662615,96033.0,96032.0,0.03484159]
[1735203443481,0.12363583,96033.0,96032.0,0.03484159]
[1735203443978,0.12363583,96033.0,96032.0,0.03584159]
[1735203444201,0.12363583,96033.0,96032.0,0.001]
[1735203444800,0.27323515,96033.0,96032.0,0.001]
[1735203446166,0.00263983,96031.0,96030.0,0.19685332]
[1735203446373,0.10662615,96031.0,96030.0,0.19685332]
[1735203447379,0.11062615,96031.0,96030.0,0.19685332]
[1735203448038,0.13236121,96031.0,96030.0,0.14585331]
[1735203448236,0.39743369,96031.0,96030.0,0.09086471]
[1735203448441,0.40643369,96031.0,96030.0,0.09086471]
[1735203448617,0.37169863,96031.0,96030.0,0.09086471]
[1735203448962,0.40759201,96031.0,96030.0,0.09086471]
[1735203449169,0.41659201,96031.0,96030.0,0.09086471]
[1735203449375,0.41643458,96031.0,96030.0,0.09086471]
[1735203449588,0.41343458,96031.0,96030.0,0.09086471]
[1735203449798,0.12562704,96031.0,96030.0,0.09086471]
[1735203450015,0.22962704,96031.0,96030.0,0.09086471]
[1735203450413,0.21662704,96031.0,96030.0,0.09086471]
[1735203450582,0.23162704,96031.0,96030.0,0.09186471]
[1735203450787,0.38162704,96031.0,96030.0,0.09186471]
[1735203450965,0.47661336,96031.0,96030.0,0.09186471]
[1735203451327,0.47961336,96031.0,96030.0,0.09086471]
[1735203451537,0.47461336,96031.0,96030.0,0.09086471]
[1735203451738,0.48361336,96031.0,96030.0,0.09086471]
[1735203451957,0.47461336,96031.0,96030.0,0.09086471]
[1735203452362,0.48361336,96031.0,96030.0,0.09086471]
[1735203452762,0.12714464,96031.0,96030.0,0.09086471]
[1735203452921,0.11298632,96031.0,96030.0,0.08486471]
[1735203453121,0.21546872,96031.0,96030.0,0.08486471]
[1735203453616,0.21146872,96031.0,96030.0,0.08586471]
[1735203453751,0.27594755,96031.0,96030.0,0.08586471]
[1735203453947,0.26194755,96031.0,96030.0,0.08486471]
[1735203454354,0.27294755,96031.0,96030.0,0.08486471]
[1735203454552,0.26394755,96031.0,96030.0,0.08486471]
[1735203454858,0.42294755,96031.0,96030.0,0.08486471]
[1735203455282,0.41394755,96031.0,96030.0,0.08486471]
[1735203455680,0.41194755,96031.0,96030.0,0.08486471]
[1735203456191,0.41694755,96031.0,96030.0,0.08586471]
[1735203456411,0.41194755,96031.0,96030.0,0.08486471]
[1735203456611,0.42094755,96031.0,96030.0,0.08486471]
[1735203456819,0.42694755,96031.0,96030.0,0.08586471]
[1735203457023,0.41794755,96031.0,96030.0,0.08586471]
[1735203457276,0.42094755,96031.0,96030.0,0.08486471]
[1735203457516,0.41694755,96031.0,96030.0,0.08586471]
[1735203457919,0.42594755,96031.0,96030.0,0.0678647]
[1735203458434,0.43494755,96031.0,96030.0,0.0679504]
[1735203458753,0.42994755,96031.0,96030.0,0.0669504]
[1735203459282,0.43594755,96031.0,96030.0,0.0679504]
[1735203459481,0.43594755,96031.0,96030.0,0.0669504]
[1735203459614,0.42994755,96031.0,96030.0,0.0669504]
[1735203459811,0.43494755,96031.0,96030.0,0.0679504]
[1735203460920,0.37946872,96031.0,96030.0,0.0679504]
[1735203462894,0.37946872,96031.0,96030.0,0.0539504]
[1735203463897,0.53046872,96031.0,96030.0,0.0539504]
[1735203464070,1.92725172,96031.0,96030.0,0.0539504]
[1735203464272,1.34366072,96031.0,96030.0,0.0539504]
[1735203464652,1.41372004,96031.0,96030.0,0.0539504]
[1735203464893,1.37157704,96031.0,96030.0,0.0539504]
[1735203465072,1.03357904,96031.0,96030.0,0.0539504]
[1735203465374,1.01557904,96031.0,96030.0,0.0539504]
[1735203465568,1.01557904,96031.0,96030.0,0.0529504]
[1735203465569,0.91057904,96031.0,96030.0,0.0529504]
[1735203465872,0.91645504,96031.0,96030.0,0.0539504]
[1735203466006,1.16815504,96031.0,96030.0,0.0539504]
[1735203466449,1.17215504,96031.0,96030.0,0.0529504]
[1735203466849,1.17715504,96031.0,96030.0,0.0539504]
[1735203467351,1.17215504,96031.0,96030.0,0.0529504]
[1735203468127,1.17215504,96031.0,96030.0,0.04195039]
[1735203468337,1.17215504,96031.0,96030.0,0.00029639]
[1735203468538,1.17215504,96031.0,96030.0,3.9e-07]
[1735203468752,1.17715504,96031.0,96030.0,3.9e-07]
[1735203468984,1.08786504,96031.0,96030.0,3.9e-07]
[1735203470996,1.08786504,96031.0,96030.0,9e-08]
[1735203471316,0.4024824,96019.0,96018.0,8.57e-05]
[1735203471494,1.12534996,96019.0,96018.0,0.00060544]
[1735203472521,0.82834996,96019.0,96018.0,0.00060544]
[1735203472848,0.77810172,96019.0,96018.0,0.00060544]
[1735203473042,0.1691454,96002.0,96001.0,0.07677684]
[1735203473268,0.27313172,96002.0,96001.0,0.07677684]
[1735203474403,0.27413172,96002.0,96001.0,0.07677684]
[1735203474774,0.33487609,96002.0,96001.0,0.07677684]
[1735203475574,0.34489748,96002.0,96001.0,0.07677684]
[1735203475953,0.28415311,96002.0,96001.0,0.07677684]
[1735203476587,0.27413172,96002.0,96001.0,0.07677684]
[1735203479327,0.0024824,96001.0,95994.0,8.57e-05]
[1735203479531,0.10646872,96001.0,95994.0,8.57e-05]
[1735203480537,0.20646872,96001.0,95994.0,8.57e-05]
[1735203480740,0.28214412,96001.0,95994.0,8.57e-05]
[1735203481009,0.43214412,96001.0,95994.0,8.57e-05]
[1735203481225,0.43214412,96001.0,96000.0,0.08206136]
[1735203481226,0.0084824,96001.0,96000.0,0.08206136]
[1735203481397,0.11246872,96001.0,96000.0,0.08206136]
[1735203481609,0.11046872,96001.0,96000.0,0.08206136]
[1735203482045,0.10646872,96001.0,96000.0,0.00176136]
[1735203482245,0.17646708,96001.0,96000.0,0.00176136]
[1735203482445,0.18246708,96001.0,96000.0,0.00276136]
[1735203482720,0.18246708,96001.0,96000.0,0.00284706]
[1735203482975,0.19146708,96001.0,96000.0,0.00284706]
[1735203483189,0.18246708,96001.0,96000.0,0.00284706]
[1735203483572,0.19146708,96001.0,96000.0,0.00284706]
[1735203483882,0.18546708,96001.0,96000.0,0.00184706]
[1735203484132,0.18946708,96001.0,96000.0,0.00184706]
[1735203484421,0.21047572,96001.0,96000.0,0.00184706]
[1735203484615,0.20647572,96001.0,96000.0,0.00184706]
[1735203485396,0.21147572,96001.0,96000.0,0.00284706]
[1735203485599,0.13899496,96001.0,96000.0,0.00284706]
[1735203486187,0.12999496,96001.0,96000.0,0.00284706]
[1735203486385,0.13247736,96001.0,96000.0,0.00284706]
[1735203486636,0.13899496,96001.0,96000.0,0.00284706]
[1735203486824,0.13647736,96001.0,96000.0,0.00184706]
[1735203487125,0.20947659,96001.0,96000.0,0.00284706]
[1735203487356,0.21199419,96001.0,96000.0,0.00284706]
[1735203487489,0.21447659,96001.0,96000.0,0.00284706]
[1735203488139,0.13899496,96001.0,96000.0,0.00284706]
[1735203488495,0.11798632,96001.0,96000.0,0.00284706]
[1735203488704,0.12046872,96001.0,96000.0,0.00284706]
[1735203488941,0.0164824,96001.0,96000.0,0.08314706]
[1735203489823,0.1741464,96001.0,96000.0,0.08214706]
[1735203490084,0.1771464,96001.0,96000.0,0.08214706]
[1735203490366,0.31821296,96001.0,96000.0,0.08214706]
[1735203490828,0.28113272,96001.0,96000.0,0.08214706]
[1735203491077,0.28413272,96001.0,96000.0,0.08214706]
[1735203491503,0.27613272,96001.0,96000.0,0.00184706]
[1735203491759,0.28413272,96001.0,96000.0,0.00184706]
[1735203491986,0.27613272,96001.0,96000.0,0.00184706]
[1735203492193,0.32121159,96001.0,96000.0,0.00184706]
[1735203492394,0.28413272,96001.0,96000.0,0.00184706]
[1735203492613,0.27613272,96001.0,96000.0,0.00184706]
[1735203492814,0.27613272,96001.0,96000.0,0.07694706]
[1735203493045,0.28213272,96001.0,96000.0,0.07694706]
[1735203493256,0.27965032,96001.0,96000.0,0.07694706]
[1735203493466,0.27665032,96001.0,96000.0,0.07694706]
[1735203493671,0.27913272,96001.0,96000.0,0.07694706]
[1735203493885,0.28113272,96001.0,96000.0,0.07694706]
[1735203494509,0.27913272,96001.0,96000.0,0.07694706]
[1735203494721,0.0104824,96001.0,96000.0,0.07694706]
[1735203494923,0.0046538,96001.0,96000.0,0.07694706]
[1735203495096,0.1693178,96001.0,96000.0,0.07694706]
[1735203495363,0.1753178,96001.0,96000.0,0.07694706]
[1735203495575,0.31808528,96001.0,96000.0,0.07694706]
[1735203495966,0.32308528,96001.0,96000.0,0.07694706]
[1735203496386,0.32308528,96001.0,96000.0,0.00184706]
[1735203497263,0.97108528,96001.0,96000.0,0.00184706]
[1735203497435,1.40092334,96001.0,96000.0,6e-08]
[1735203497641,1.06123034,96001.0,96000.0,6e-08]
[1735203497879,1.13983034,96001.0,96000.0,6e-08]
[1735203498131,0.5191574,95995.0,95994.0,7.6e-07]
[1735203498308,0.97913004,95995.0,95994.0,7.6e-07]
[1735203498511,0.8191714,95987.0,95986.0,0.01445956]
[1735203498743,2.91039672,95987.0,95986.0,0.01445956]
[1735203498964,4.08099972,95987.0,95986.0,0.01445956]
[1735203499165,2.77661372,95987.0,95986.0,0.01445956]
[1735203499320,2.80829015,95987.0,95986.0,0.01445956]
[1735203499520,2.97070015,95987.0,95986.0,5.6e-07]
[1735203499722,1.52024415,95987.0,95986.0,1.4e-07]
[1735203500086,1.52024415,95987.0,95962.0,1e-06]
[1735203500087,0.2024824,95963.0,95962.0,1e-06]
[1735203500350,0.60846872,95963.0,95962.0,5.294e-05]
[1735203500771,0.50598632,95963.0,95962.0,5.294e-05]
[1735203501064,0.60846872,95963.0,95962.0,5.294e-05]
[1735203501704,0.62146872,95963.0,95962.0,5.294e-05]
[1735203502111,0.60846872,95963.0,95962.0,5.194e-05]
[1735203502348,0.1692334,95951.0,95950.0,0.01296307]
[1735203502553,0.27321972,95951.0,95950.0,0.01311909]
[1735203502727,0.27321972,95951.0,95950.0,0.09371909]
[1735203503556,0.34389069,95951.0,95950.0,0.09371909]
[1735203504347,0.34389069,95951.0,95950.0,0.01311909]
[1735203504558,0.34789069,95951.0,95950.0,0.01311909]
[1735203504754,0.34889069,95951.0,95950.0,0.01311909]
[1735203504936,0.27821972,95951.0,95950.0,0.01311909]
[1735203505347,0.27421972,95951.0,95950.0,0.01311909]
[1735203505547,0.28221972,95951.0,95950.0,0.01311909]
[1735203505751,0.27321972,95951.0,95950.0,0.01311909]
[1735203506205,0.27921972,95951.0,95950.0,0.01311909]
[1735203506544,0.60049069,95951.0,95950.0,0.01311909]
[1735203506858,0.60049069,95951.0,95950.0,0.00497829]
[1735203506859,1.09352704,95951.0,95950.0,0.00497829]
[1735203507075,0.3524824,95950.0,95921.0,8.58e-05]
[1735203507291,1.50589172,95950.0,95921.0,8.58e-05]
[1735203507521,1.50589172,95950.0,95949.0,7e-07]
[1735203507723,1.50589172,95950.0,95905.0,0.0806]
[1735203507724,0.0024824,95906.0,95905.0,0.078858]
[1735203507920,0.10646872,95906.0,95905.0,0.0793788]
[1735203508127,0.0024824,95906.0,95905.0,0.0793788]
[1735203508330,0.21541722,95950.0,95918.0,0.166808]
[1735203508557,0.166773,95939.0,95920.0,0.216505]
[1735203508758,0.0161246,95950.0,95921.0,0.10104239]
[1735203508966,0.006,95950.0,95936.0,0.0497]
[1735203509184,0.09169222,95942.0,95938.0,0.166774]
[1735203509383,0.09169222,95942.0,95936.0,0.216476]
[1735203509606,0.27075532,95941.0,95936.0,0.0497]
[1735203509804,0.09169222,95942.0,95936.0,0.0497]
[1735203510209,0.09169222,95942.0,95936.0,0.04985547]
[1735203510210,0.06423095,95942.0,95936.0,0.04985547]
[1735203510419,0.10398632,95941.0,95936.0,0.04985547]
[1735203510631,0.166774,95938.0,95937.0,0.0829]
[1735203510831,0.27075532,95941.0,95937.0,0.0829]
[1735203511248,0.10398632,95941.0,95937.0,0.0829]
[1735203511454,0.002,95942.0,95937.0,0.0829]
[1735203511713,0.166755,95949.0,95937.0,0.08394224]
[1735203511917,0.002,95941.0,95937.0,0.08394224]
[1735203512354,0.166758,95947.0,95937.0,0.08394224]
[1735203512552,0.003,95942.0,95937.0,0.08394224]
[1735203513202,0.43752532,95941.0,95937.0,0.0829]
[1735203514832,0.43952532,95941.0,95937.0,0.0829]
[1735203515027,0.49815365,95941.0,95937.0,0.0829]
[1735203515231,0.168769,95941.0,95937.0,0.0829]
[1735203515639,0.166769,95941.0,95937.0,0.0829]
[1735203515863,0.168769,95941.0,95937.0,0.0829]
[1735203516078,0.002,95941.0,95937.0,0.0829]
[1735203516607,0.002,95941.0,95938.0,0.21551627]
[1735203516818,0.002,95941.0,95937.0,0.0829]
[1735203516819,0.1376057,95974.0,95947.0,0.1326]
[1735203517026,0.25840822,95972.0,95957.0,0.249641]
[1735203517223,0.09169222,95972.0,95959.0,0.166737]
[1735203517474,0.09169222,95972.0,95961.0,0.1326]
[1735203517668,0.09169222,95972.0,95962.0,0.0010419]
[1735203517847,0.09169222,95972.0,95961.0,0.2326]
[1735203517848,0.09169222,95982.0,95964.0,0.166729]
[1735203518047,0.09169222,95982.0,95963.0,0.0829]
[1735203518048,0.12492071,95980.0,95963.0,0.0829]
[1735203518246,0.10398632,95980.0,95965.0,0.00104183]
[1735203518563,0.005,95972.0,95965.0,0.00104183]
[1735203518743,0.166703,95979.0,95965.0,0.00104183]
[1735203519169,0.166699,95981.0,95963.0,0.0829]
[1735203519402,0.002,95972.0,95963.0,0.0829]
[1735203519719,0.002,95972.0,95965.0,0.166727]
[1735203519918,0.005,95980.0,95965.0,0.166727]
[1735203520122,0.001,95979.0,95965.0,0.166727]
[1735203520450,0.001,95979.0,95970.0,0.166717]
[1735203520678,0.0182846,95979.0,95967.0,0.166723]
[1735203521154,0.10398632,95978.0,95963.0,0.0829]
[1735203521422,0.10503141,95978.0,95963.0,0.0829]
[1735203521694,0.166728,95965.0,95963.0,0.0829]
[1735203521855,0.0166728,95964.0,95963.0,0.0829]
[1735203523528,0.0176728,95964.0,95963.0,0.0829]
[1735203523746,0.001,95964.0,95963.0,0.0829]
[1735203523950,0.166718,95971.0,95963.0,0.0829]
[1735203524166,0.005,95964.0,95963.0,0.08394198]
[1735203524372,0.005,95964.0,95963.0,0.08394196]
[1735203524576,0.001,95964.0,95963.0,0.08394196]
[1735203524784,0.005,95964.0,95963.0,0.08394196]
[1735203524988,0.001,95964.0,95963.0,0.08394196]
[1735203525420,0.166682,95992.0,95978.0,0.0828]
[1735203525631,0.166682,95992.0,95979.0,0.00104175]
[1735203525825,0.166682,95992.0,95980.0,0.00104175]
[1735203526036,0.0001714,96001.0,95980.0,0.15002807]
[1735203526234,0.0001714,96001.0,95980.0,0.25002807]
[1735203526459,0.0001714,96001.0,95980.0,0.40680183]
[1735203526601,0.0001714,96001.0,95980.0,0.33178632]
[1735203527185,0.00115496,95981.0,95980.0,0.34197634]
[1735203528697,0.00015496,95981.0,95980.0,0.34197634]
[1735203528871,0.00115496,95981.0,95980.0,0.34297634]
[1735203529080,0.00215496,95981.0,95980.0,0.34297634]
[1735203529422,0.0001714,96001.0,96000.0,0.249466]
[1735203529648,0.0001714,96001.0,96000.0,0.0828]
[1735203529868,0.0001714,96001.0,96000.0,0.08384152]
[1735203530820,0.10415772,96001.0,96000.0,0.00104152]
[1735203531053,0.10415772,96001.0,95980.0,0.01119002]
[1735203531054,0.00104509,96000.0,95980.0,0.001]
[1735203531281,0.166698,95982.0,95980.0,0.001]
[1735203531484,0.10398632,95981.0,95980.0,0.001]
[1735203532108,0.10398632,95981.0,95972.0,0.0828]
[1735203532354,0.166703,95979.0,95972.0,0.0828]
[1735203532562,0.166704,95978.0,95972.0,0.0828]
[1735203532766,0.333409,95978.0,95972.0,0.0828]
[1735203532971,0.166708,95976.0,95972.0,0.0828]
[1735203533412,0.166708,95976.0,95972.0,0.0838]
[1735203534757,0.333416,95976.0,95972.0,0.001]
[1735203534954,0.166711,95974.0,95972.0,0.001]
[1735203535159,0.16554685,95973.0,95950.0,0.18898042]
[1735203535396,0.10503141,95973.0,95951.0,0.166751]
[1735203535604,0.10503141,95973.0,95952.0,0.00104201]
[1735203535782,0.166726,95966.0,95952.0,0.00104201]
[1735203536453,0.333452,95966.0,95952.0,0.00104201]
[1735203536628,0.166726,95966.0,95953.0,0.00104202]
[1735203536831,0.19399723,95966.0,95953.0,0.00104202]
[1735203537559,0.166715,95972.0,95954.0,0.333492]
[1735203537775,0.166715,95972.0,95956.0,0.166743]
[1735203537977,0.166715,95972.0,95958.0,0.166739]
[1735203538182,0.166715,95972.0,95959.0,0.00104196]
[1735203538524,0.005,95966.0,95959.0,0.00104196]
[1735203538703,0.005,95966.0,95955.0,0.00104196]
[1735203539129,0.166709,95976.0,95961.0,0.166733]
[1735203539367,0.004,95972.0,95962.0,0.00104192]
[1735203539609,0.167716,95972.0,95963.0,0.00104192]
[1735203539854,0.001,95966.0,95963.0,0.00104192]
[1735203540091,0.001,95966.0,95964.0,0.166729]
[1735203540347,0.001,95966.0,95965.0,0.0797419]
[1735203540863,0.166697,95983.0,95966.0,0.0467]
[1735203541157,0.166687,95988.0,95973.0,0.166712]
[1735203541397,0.166672,95997.0,95975.0,0.16671]
[1735203541601,0.166672,95997.0,95970.0,0.18793841]
[1735203541602,0.10398632,95997.0,95977.0,0.166706]
[1735203541808,0.166673,95996.0,95979.0,0.166703]
[1735203542009,0.166673,95996.0,95980.0,0.0010417]
[1735203542271,0.21146445,95996.0,95981.0,0.0787]
[1735203542482,0.21146445,95996.0,95982.0,0.0010417]
[1735203542688,0.166673,95996.0,95982.0,0.0010417]
[1735203542888,0.003,95988.0,95982.0,0.0010417]
[1735203543299,0.003,95988.0,95984.0,0.166692]
[1735203543517,0.003,95988.0,95986.0,0.16669]
[1735203543719,0.003,95988.0,95987.0,0.00104163]
[1735203544377,0.003,95996.0,95988.0,0.166687]
[1735203544581,0.003,95996.0,95984.0,0.166692]
[1735203544582,0.003,95996.0,95995.0,0.166675]
[1735203544784,0.003,95996.0,95985.0,0.00104155]
[1735203544905,0.166666,96000.0,95984.0,0.166692]
[1735203545111,0.166669,95999.0,95990.0,0.18793841]
[1735203545336,0.166669,95999.0,95984.0,0.166692]
[1735203545605,0.10503141,95998.0,95981.0,0.0787]
[1735203545889,0.166687,95989.0,95987.0,0.003]
[1735203546644,0.166671,95997.0,95987.0,0.003]
[1735203546848,0.166677,95994.0,95987.0,0.003]
[1735203547076,0.10398632,95993.0,95987.0,0.003]
[1735203547388,0.10398632,95993.0,95980.0,0.18793841]
[1735203547389,0.02717084,95992.0,95980.0,0.18793841]
[1735203547586,0.166684,95991.0,95981.0,0.00104174]
[1735203547827,0.166684,95991.0,95980.0,0.18898016]
[1735203548027,0.003,95989.0,95980.0,0.18793841]
[1735203548501,0.166687,95988.0,95980.0,0.18793841]
[1735203548714,0.166687,95988.0,95976.0,0.166708]
[1735203548842,0.04383573,95987.0,95976.0,0.166708]
[1735203549043,0.166687,95988.0,95976.0,0.166708]
[1735203549486,0.166684,95991.0,95978.0,0.18793841]
[1735203549744,0.166684,95991.0,95979.0,0.00104175]
[1735203549745,0.002,95988.0,95979.0,0.00104175]
[1735203550109,0.002,95988.0,95980.0,0.166701]
[1735203550314,0.002,95988.0,95981.0,0.00104172]
[1735203550514,0.002,95988.0,95982.0,0.00104172]
[1735203550970,0.166683,95991.0,95982.0,0.00104172]
[1735203551176,0.166683,95991.0,95981.0,0.00104174]
[1735203551373,0.002,95988.0,95981.0,0.001]
[1735203551574,0.002,95988.0,95982.0,0.00104174]
[1735203551847,0.003,95988.0,95982.0,0.00104174]
[1735203552017,0.001,95988.0,95979.0,0.00104174]
[1735203552253,0.0001714,96001.0,95981.0,0.166699]
[1735203552457,0.002,95991.0,95989.0,0.18793841]
[1735203552637,0.002,95991.0,95990.0,0.2144256]
[1735203552831,0.002,95991.0,95990.0,0.213384]
[1735203554281,0.0001714,96001.0,95990.0,0.213384]
[1735203554476,0.0001714,96001.0,95997.0,0.166671]
[1735203554658,0.0001714,96001.0,95998.0,0.00104151]
[1735203555847,0.0001714,96001.0,95999.0,0.166668]
[1735203556089,0.0001714,96001.0,96000.0,0.00104151]
[1735203556297,0.0021714,96001.0,96000.0,0.00104151]
[1735203556561,0.0021714,96001.0,96000.0,0.08004151]
[1735203557580,0.0001714,96001.0,96000.0,0.08004151]
[1735203557967,0.0021714,96001.0,96000.0,0.08004151]
[1735203558373,0.0021714,96001.0,96000.0,0.08404151]
[1735203558572,0.0001714,96001.0,96000.0,0.08204151]
[1735203558778,0.0001714,96001.0,96000.0,0.08004151]
[1735203559012,0.0011714,96001.0,96000.0,0.08904151]
[1735203559162,0.0011714,96001.0,96000.0,0.08404151]
[1735203559717,0.0021714,96001.0,96000.0,0.08904151]
[1735203560303,0.0021714,96001.0,96000.0,0.005]
[1735203560467,0.0021714,96001.0,96000.0,0.009]
[1735203560943,0.0001714,96001.0,96000.0,0.004]
[1735203561125,0.0011714,96001.0,96000.0,0.005]
[1735203561333,0.0011714,96001.0,96000.0,0.004]
[1735203561533,0.10515772,96001.0,96000.0,0.004]
[1735203561737,0.11020281,96001.0,96000.0,0.004]
[1735203562031,0.11020281,96001.0,95982.0,0.00104171]
[1735203562032,0.10920281,96001.0,95982.0,0.00104171]
[1735203562251,0.1718354,96001.0,96000.0,0.006]
[1735203562450,0.1678354,96001.0,96000.0,0.001]
[1735203562856,0.1718354,96001.0,96000.0,0.001]
[1735203563260,0.57644077,96001.0,96000.0,0.001]
[1735203563410,0.15,96000.0,95981.0,0.00104171]
[1735203563632,0.15,95997.0,95981.0,0.00104171]
[1735203563841,0.10398632,95996.0,95981.0,0.00104171]
[1735203565249,0.10598632,95996.0,95981.0,0.00104171]